[Event "44th Chess Olympiad Women 2022"]
[Site "Chennai"]
[Date "2022.08.05"]
[Round "7.38"]
[White "Milovic, Aleksandra"]
[Black "Mwango, Lorita"]
[Result "1/2-1/2"]
[WhiteElo "2129"]
[BlackElo "1920"]
[Annotator "NA RC"]
[PlyCount "95"]
[EventDate "2022.??.??"]
[TimeControl "60"]

1. d4 {[%emt 0:00:09]} d5 {[%emt 0:00:08]} 2. Nc3 {[%emt 0:00:07]} Nf6 {
[%emt 0:00:14]} 3. Bf4 {[%emt 0:00:09]} a6 {[%emt 0:00:38]} 4. e3 {[%emt 0:00:
00]} Bf5 {[%emt 0:00:17]} 5. Nf3 {[%emt 0:00:22]} e6 {[%emt 0:00:28]} 6. Ne5 {
[%emt 0:00:08]} h6 {[%emt 0:01:03]} 7. g4 {[%emt 0:01:45]} Bh7 {[%emt 0:00:30]}
8. a3 {[%emt 0:08:03]} Nbd7 {[%emt 0:00:36]} 9. h4 {[%emt 0:01:32]} Nxe5 {
[%emt 0:08:12]} 10. Bxe5 {[%emt 0:04:43]} Nd7 {[%emt 0:01:52]} 11. Bd3 {
[%emt 0:05:13]} Bxd3 {[%emt 0:06:34]} 12. Qxd3 {[%emt 0:00:16]} c5 {[%emt 0:00:
00]} 13. Bg3 {[%emt 0:07:27]} Be7 {[%emt 0:01:17]} 14. O-O-O {[%emt 0:10:25]}
cxd4 {[%emt 0:02:53]} 15. Qxd4 {[%emt 0:02:59]} Bf6 {[%emt 0:00:49]} 16. Qb4 {
[%emt 0:01:32]} Qb6 {[%emt 0:00:30]} 17. g5 {[%emt 0:14:33]} Qxb4 {[%emt 0:00:
00]} 18. axb4 {[%emt 0:00:05]} Be7 {[%emt 0:01:06]} 19. e4 {[%emt 0:03:05]}
dxe4 {[%emt 0:04:22]} 20. Nxe4 {[%emt 0:00:59]} hxg5 {[%emt 0:01:37]} 21. hxg5
{[%emt 0:00:51]} Rxh1 {[%emt 0:00:44]} 22. Rxh1 {[%emt 0:00:05]} O-O-O {
[%emt 0:05:39]} 23. Bd6 {[%emt 0:03:30]} Bf8 {[%emt 0:04:08]} 24. Rh3 {[%emt 0:
00:00]} Nb8 {[%emt 0:04:55]} 25. Rh8 {[%emt 0:01:01]} Be7 {[%emt 0:01:19]} 26.
Rxd8+ {[%emt 0:01:41]} Bxd8 {[%emt 0:00:20]} 27. Be5 {[%emt 0:02:16]} Be7 {
[%emt 0:01:14]} 28. Bxg7 {[%emt 0:01:57]} Bxb4 {[%emt 0:00:12]} 29. c3 {
[%emt 0:01:57]} Be7 {[%emt 0:00:21]} 30. Kd2 {[%emt 0:03:17]} Kd7 {[%emt 0:00:
00]} 31. Kd3 {[%emt 0:00:15]} Kc6 {[%emt 0:00:36]} 32. f4 {[%emt 0:01:19]} Nd7
{[%emt 0:00:17]} 33. b4 {[%emt 0:00:55]} Nb6 {[%emt 0:02:25]} 34. Nd2 {[%emt 0:
00:00]} Nd5 {[%emt 0:00:59]} 35. Ke4 {[%emt 0:00:39]} Bd6 {[%emt 0:00:16]} 36.
Be5 {[%emt 0:00:34]} Bxe5 {[%emt 0:00:48]} 37. Kxe5 {[%emt 0:00:05]} Nxc3 {
[%emt 0:00:15]} 38. Kf6 {[%emt 0:00:13]} Nd5+ {[%emt 0:00:20]} 39. Kxf7 {
[%emt 0:00:07]} Nxf4 {[%emt 0:00:05]} 40. Ne4 {[%emt 0:07:33]} b6 {[%emt 0:00:
00]} 41. Kf6 {[%emt 0:34:23]} Kb5 {[%emt 0:31:13]} 42. Ke5 {[%emt 0:00:42]}
Ng6+ {[%emt 0:00:13]} 43. Kxe6 {[%emt 0:01:15]} Kxb4 {[%emt 0:00:03]} 44. Kf5 {
[%emt 0:00:42]} Nh4+ {[%emt 0:00:06]} 45. Kg4 {[%emt 0:00:00]} Ng6 {[%emt 0:00:
00]} 46. Kf5 {[%emt 0:00:00]} Nh4+ {[%emt 0:00:00]} 47. Kg4 {[%emt 0:00:00]}
Ng6 {[%emt 0:00:00]} 48. Kf5 {[%emt 0:00:00]} 1/2-1/2

[Event "44th Chess Olympiad Women 2022"]
[Site "Chennai"]
[Date "2022.08.05"]
[Round "7.39"]
[White "Antonio, Renelsa Taiane"]
[Black "Lopez L., Dairyn D."]
[Result "1/2-1/2"]
[WhiteElo "1471"]
[BlackElo "1574"]
[Annotator "NA"]
[PlyCount "174"]
[EventDate "2022.??.??"]
[TimeControl "60"]

1. e4 {[%emt 0:00:21]} g6 {[%emt 0:00:10]} 2. d4 {[%emt 0:00:20]} Bg7 {[%emt 0:
00:00]} 3. Nf3 {[%emt 0:01:20]} d6 {[%emt 0:00:23]} 4. Nc3 {[%emt 0:01:13]} Nf6
{[%emt 0:00:48]} 5. Be2 {[%emt 0:00:43]} Nbd7 {[%emt 0:05:30]} 6. Be3 {[%emt 0:
00:00]} O-O {[%emt 0:10:25]} 7. O-O {[%emt 0:01:37]} Ng4 {[%emt 0:00:47]} 8.
Bf4 {[%emt 0:08:15]} e5 {[%emt 0:13:41]} 9. Bg3 {[%emt 0:02:38]} Kh8 {[%emt 0:
00:00]} 10. h3 {[%emt 0:00:27]} Nh6 {[%emt 0:01:43]} 11. Qd2 {[%emt 0:07:20]}
Qe8 {[%emt 0:02:18]} 12. Nd5 {[%emt 0:02:18]} Qd8 {[%emt 0:05:49]} 13. dxe5 {
[%emt 0:11:16]} dxe5 {[%emt 0:10:13]} 14. c3 {[%emt 0:23:04]} c6 {[%emt 0:00:
00]} 15. Nb4 {[%emt 0:00:23]} Qe7 {[%emt 0:02:09]} 16. Nd3 {[%emt 0:02:41]} Ng8
{[%emt 0:04:51]} 17. Nh2 {[%emt 0:03:57]} Nc5 {[%emt 0:06:56]} 18. Nxc5 {
[%emt 0:01:11]} Qxc5 {[%emt 0:00:04]} 19. Kh1 {[%emt 0:00:57]} Be6 {[%emt 0:00:
00]} 20. f3 {[%emt 0:01:29]} Rfd8 {[%emt 0:01:09]} 21. Qc2 {[%emt 0:00:35]} h6
{[%emt 0:02:12]} 22. Bf2 {[%emt 0:00:25]} Qe7 {[%emt 0:00:18]} 23. b3 {[%emt 0:
00:00]} Qg5 {[%emt 0:00:10]} 24. Rad1 {[%emt 0:01:43]} Nf6 {[%emt 0:02:21]} 25.
h4 {[%emt 0:01:02]} Qf4 {[%emt 0:18:03]} 26. g3 {[%emt 0:00:18]} Rxd1 {[%emt 0:
00:00]} 27. Rxd1 {[%emt 0:00:20]} Nxe4 {[%emt 0:00:16]} 28. gxf4 {[%emt 0:00:
00]} Nxf2+ {[%emt 0:00:08]} 29. Kg2 {[%emt 0:00:47]} Nxd1 {[%emt 0:00:14]} 30.
Bxd1 {[%emt 0:01:04]} exf4 {[%emt 0:00:05]} 31. Qd2 {[%emt 0:02:18]} h5 {
[%emt 0:01:10]} 32. c4 {[%emt 0:00:52]} Kh7 {[%emt 0:00:26]} 33. Qxf4 {[%emt 0:
00:00]} Rd8 {[%emt 0:00:16]} 34. Bc2 {[%emt 0:00:34]} Bh6 {[%emt 0:00:16]} 35.
Qe4 {[%emt 0:02:48]} Bf5 {[%emt 0:01:01]} 36. Qe7 {[%emt 0:01:46]} Rd2+ {
[%emt 0:00:44]} 37. Kg3 {[%emt 0:00:13]} Rxc2 {[%emt 0:01:08]} 38. Qxf7+ {
[%emt 0:00:32]} Bg7 {[%emt 0:00:04]} 39. Qxb7 {[%emt 0:01:37]} Rxa2 {[%emt 0:
00:00]} 40. Qxc6 {[%emt 0:01:02]} Rd2 {[%emt 0:01:44]} 41. Qc7 {[%emt 0:32:28]}
Rd7 {[%emt 0:30:21]} 42. Qc5 {[%emt 0:01:36]} Bd4 {[%emt 0:01:14]} 43. Qb5 {
[%emt 0:00:51]} Bb6 {[%emt 0:02:24]} 44. c5 {[%emt 0:03:15]} Bc7+ {[%emt 0:00:
00]} 45. f4 {[%emt 0:00:49]} Rd3+ {[%emt 0:00:29]} 46. Kg2 {[%emt 0:03:12]}
Be4+ {[%emt 0:01:47]} 47. Kf2 {[%emt 0:04:25]} Bxf4 {[%emt 0:00:30]} 48. Nf1 {
[%emt 0:01:06]} Rf3+ {[%emt 0:02:22]} 49. Ke1 {[%emt 0:00:00]} Kh6 {[%emt 0:00:
00]} 50. Qe2 {[%emt 0:00:00]} Bc6 {[%emt 0:00:00]} 51. Qe6 {[%emt 0:00:00]} Bb5
{[%emt 0:00:00]} 52. Kd1 {[%emt 0:00:00]} Rxf1+ {[%emt 0:00:00]} 53. Kc2 {
[%emt 0:00:00]} Rf2+ {[%emt 0:00:00]} 54. Kc3 {[%emt 0:00:00]} Bd2+ {[%emt 0:
00:00]} 55. Kd4 {[%emt 0:00:00]} Rf4+ {[%emt 0:00:38]} 56. Kd5 {[%emt 0:00:00]}
Rf5+ {[%emt 0:00:00]} 57. Kd4 {[%emt 0:00:00]} Rf3 {[%emt 0:00:00]} 58. c6 {
[%emt 0:00:00]} Bf1 {[%emt 0:00:00]} 59. c7 {[%emt 0:00:00]} Rd3+ {[%emt 0:00:
00]} 60. Kc5 {[%emt 0:00:00]} Rc3+ {[%emt 0:00:04]} 61. Kd6 {[%emt 0:00:00]}
Bf4+ {[%emt 0:01:01]} 62. Kd7 {[%emt 0:00:00]} Rxc7+ {[%emt 0:01:54]} 63. Kd8 {
[%emt 0:00:00]} Rg7 {[%emt 0:02:00]} 64. Qf6 {[%emt 0:02:15]} Bc7+ {[%emt 0:00:
00]} 65. Ke8 {[%emt 0:00:21]} Bb5+ {[%emt 0:00:47]} 66. Kf8 {[%emt 0:00:20]}
Rd7 {[%emt 0:01:35]} 67. Qg5+ {[%emt 0:00:19]} Kh7 {[%emt 0:00:11]} 68. Qxb5 {
[%emt 0:00:30]} Bd6+ {[%emt 0:01:21]} 69. Ke8 {[%emt 0:00:14]} Re7+ {[%emt 0:
00:00]} 70. Kd8 {[%emt 0:00:09]} Rg7 {[%emt 0:00:09]} 71. Qd5 {[%emt 0:00:46]}
Bg3 {[%emt 0:00:12]} 72. Qe4 {[%emt 0:01:57]} Bc7+ {[%emt 0:00:26]} 73. Ke8 {
[%emt 0:00:37]} Bb6 {[%emt 0:00:20]} 74. b4 {[%emt 0:00:30]} Bf2 {[%emt 0:00:
00]} 75. Kf8 {[%emt 0:00:38]} Rg8+ {[%emt 0:01:17]} 76. Kf7 {[%emt 0:00:08]}
Rg7+ {[%emt 0:00:03]} 77. Kf6 {[%emt 0:00:11]} Bb6 {[%emt 0:00:30]} 78. Qe8 {
[%emt 0:00:57]} Bd4+ {[%emt 0:00:25]} 79. Kg5 {[%emt 0:00:07]} Bb6 {[%emt 0:00:
00]} 80. Kf6 {[%emt 0:02:17]} Bd4+ {[%emt 0:00:08]} 81. Ke6 {[%emt 0:00:46]}
Bb6 {[%emt 0:00:13]} 82. Kd6 {[%emt 0:01:08]} Bf2 {[%emt 0:00:22]} 83. Qd8 {
[%emt 0:00:50]} Bg3+ {[%emt 0:00:33]} 84. Kc6 {[%emt 0:00:09]} Bf2 {[%emt 0:00:
00]} 85. b5 {[%emt 0:00:48]} Bb6 {[%emt 0:00:38]} 86. Qd6 {[%emt 0:01:05]} Bf2
{[%emt 0:00:26]} 87. Qf4 {[%emt 0:00:29]} Bb6 {[%emt 0:00:20]} 1/2-1/2

[Event "44th Chess Olympiad Women 2022"]
[Site "Chennai"]
[Date "2022.08.05"]
[Round "7.39"]
[White "Mazariegos, Silvia Carolina"]
[Black "Junior, Ednasia"]
[Result "1/2-1/2"]
[WhiteElo "1851"]
[BlackElo "1849"]
[Annotator "NA"]
[PlyCount "63"]
[EventDate "2022.??.??"]
[TimeControl "60"]

1. d4 {[%emt 0:00:07]} Nf6 {[%emt 0:00:09]} 2. e3 {[%emt 0:00:27]} g6 {[%emt 0:
00:00]} 3. Bd3 {[%emt 0:00:16]} Bg7 {[%emt 0:00:13]} 4. Nf3 {[%emt 0:00:30]}
O-O {[%emt 0:00:17]} 5. Nbd2 {[%emt 0:00:17]} d6 {[%emt 0:00:27]} 6. O-O {
[%emt 0:00:31]} Nbd7 {[%emt 0:00:08]} 7. c3 {[%emt 0:01:52]} e5 {[%emt 0:01:15]
} 8. dxe5 {[%emt 0:03:31]} Nxe5 {[%emt 0:03:41]} 9. Nxe5 {[%emt 0:01:32]} dxe5
{[%emt 0:00:18]} 10. Qe2 {[%emt 0:00:11]} c6 {[%emt 0:05:05]} 11. a4 {[%emt 0:
00:00]} a5 {[%emt 0:02:37]} 12. e4 {[%emt 0:02:38]} h6 {[%emt 0:05:26]} 13. b3
{[%emt 0:09:46]} Be6 {[%emt 0:02:44]} 14. Bc4 {[%emt 0:02:37]} Qd7 {[%emt 0:00:
00]} 15. Ba3 {[%emt 0:13:16]} Rfd8 {[%emt 0:05:56]} 16. Rfd1 {[%emt 0:01:32]}
Bf8 {[%emt 0:07:13]} 17. Bxf8 {[%emt 0:13:14]} Kxf8 {[%emt 0:04:02]} 18. f3 {
[%emt 0:00:14]} Nh5 {[%emt 0:06:41]} 19. g3 {[%emt 0:04:30]} Ng7 {[%emt 0:00:
00]} 20. Qe3 {[%emt 0:01:27]} h5 {[%emt 0:04:46]} 21. Qc5+ {[%emt 0:05:14]} Qd6
{[%emt 0:10:25]} 22. Qxd6+ {[%emt 0:15:49]} Rxd6 {[%emt 0:00:13]} 23. Bxe6 {
[%emt 0:00:15]} Rad8 {[%emt 0:04:14]} 24. Bc8 {[%emt 0:05:20]} b6 {[%emt 0:00:
00]} 25. Ra2 {[%emt 0:05:43]} Rxc8 {[%emt 0:00:34]} 26. Rc1 {[%emt 0:00:04]} b5
{[%emt 0:05:34]} 27. Rcc2 {[%emt 0:01:09]} Rcd8 {[%emt 0:01:09]} 28. Nf1 {
[%emt 0:02:57]} Ra8 {[%emt 0:00:36]} 29. Rd2 {[%emt 0:01:21]} Ke7 {[%emt 0:00:
00]} 30. Kf2 {[%emt 0:01:10]} Ne6 {[%emt 0:00:24]} 31. Rxd6 {[%emt 0:01:25]}
Kxd6 {[%emt 0:00:02]} 32. axb5 {[%emt 0:00:24]} 1/2-1/2

[Event "44th Chess Olympiad Women 2022"]
[Site "Chennai"]
[Date "2022.08.05"]
[Round "7.39"]
[White "Natareno, Elvia"]
[Black "Paulo, Jemima"]
[Result "0-1"]
[WhiteElo "1581"]
[BlackElo "1850"]
[Annotator "NA RC"]
[PlyCount "124"]
[EventDate "2022.??.??"]
[TimeControl "60"]

1. d4 {[%emt 0:00:15]} Nf6 {[%emt 0:00:14]} 2. Nf3 {[%emt 0:00:23]} g6 {
[%emt 0:00:48]} 3. e3 {[%emt 0:00:37]} Bg7 {[%emt 0:00:27]} 4. b3 {[%emt 0:00:
00]} O-O {[%emt 0:00:43]} 5. Bb2 {[%emt 0:00:29]} d6 {[%emt 0:02:29]} 6. Bd3 {
[%emt 0:02:34]} Nc6 {[%emt 0:00:14]} 7. a3 {[%emt 0:00:08]} Nd7 {[%emt 0:02:12]
} 8. O-O {[%emt 0:01:14]} e5 {[%emt 0:00:08]} 9. d5 {[%emt 0:01:00]} Ne7 {
[%emt 0:00:23]} 10. e4 {[%emt 0:01:47]} f5 {[%emt 0:01:41]} 11. c4 {[%emt 0:00:
00]} f4 {[%emt 0:00:12]} 12. h3 {[%emt 0:00:22]} h6 {[%emt 0:00:09]} 13. Nbd2 {
[%emt 0:00:44]} g5 {[%emt 0:01:31]} 14. Nh2 {[%emt 0:02:32]} Qe8 {[%emt 0:00:
00]} 15. Be2 {[%emt 0:00:11]} Nf6 {[%emt 0:00:31]} 16. Ng4 {[%emt 0:02:06]}
Bxg4 {[%emt 0:02:30]} 17. Bxg4 {[%emt 0:00:18]} Nxg4 {[%emt 0:01:40]} 18. Qxg4
{[%emt 0:08:34]} Qg6 {[%emt 0:00:08]} 19. Qd7 {[%emt 0:01:11]} Rf7 {[%emt 0:00:
00]} 20. Qg4 {[%emt 0:02:25]} h5 {[%emt 0:00:08]} 21. Qe2 {[%emt 0:00:11]} g4 {
[%emt 0:00:16]} 22. Kh2 {[%emt 0:03:13]} f3 {[%emt 0:06:39]} 23. gxf3 {[%emt 0:
00:00]} Raf8 {[%emt 0:00:08]} 24. Rg1 {[%emt 0:06:52]} Qg5 {[%emt 0:03:17]} 25.
Raf1 {[%emt 0:05:48]} Qh4 {[%emt 0:01:07]} 26. Rg3 {[%emt 0:04:24]} Ng6 {
[%emt 0:09:59]} 27. fxg4 {[%emt 0:06:23]} Nf4 {[%emt 0:01:22]} 28. Qe3 {
[%emt 0:05:29]} hxg4 {[%emt 0:09:04]} 29. Rxg4 {[%emt 0:03:48]} Qh5 {[%emt 0:
00:00]} 30. Rfg1 {[%emt 0:04:26]} Kh7 {[%emt 0:00:20]} 31. Qg3 {[%emt 0:00:21]}
Bh6 {[%emt 0:00:15]} 32. Rh4 {[%emt 0:00:38]} Qg6 {[%emt 0:05:38]} 33. Bc1 {
[%emt 0:10:10]} Qxg3+ {[%emt 0:00:15]} 34. fxg3 {[%emt 0:00:34]} Ne2 {[%emt 0:
00:00]} 35. Re1 {[%emt 0:01:07]} Nxc1 {[%emt 0:00:22]} 36. Rxc1 {[%emt 0:00:15]
} Rf2+ {[%emt 0:00:06]} 37. Kg1 {[%emt 0:00:04]} Rxd2 {[%emt 0:00:08]} 38. Rf1
{[%emt 0:01:11]} Rxf1+ {[%emt 0:00:07]} 39. Kxf1 {[%emt 0:00:01]} Rd3 {[%emt 0:
00:00]} 40. g4 {[%emt 0:00:11]} Kg6 {[%emt 0:00:23]} 41. Rh5 {[%emt 0:30:11]}
Rxb3 {[%emt 0:30:17]} 42. Kg2 {[%emt 0:00:22]} Rxa3 {[%emt 0:02:19]} 43. Rf5 {
[%emt 0:00:53]} Bf4 {[%emt 0:02:10]} 44. Rf8 {[%emt 0:00:49]} Rc3 {[%emt 0:00:
00]} 45. Rb8 {[%emt 0:00:28]} Rxc4 {[%emt 0:00:09]} 46. Rxb7 {[%emt 0:00:22]}
a5 {[%emt 0:00:08]} 47. Rb8 {[%emt 0:00:36]} Rxe4 {[%emt 0:00:13]} 48. h4 {
[%emt 0:00:06]} a4 {[%emt 0:00:40]} 49. h5+ {[%emt 0:00:26]} Kf7 {[%emt 0:00:
00]} 50. Rb7 {[%emt 0:00:11]} Rc4 {[%emt 0:00:10]} 51. Ra7 {[%emt 0:00:15]} Bc1
{[%emt 0:00:56]} 52. Kh3 {[%emt 0:00:16]} a3 {[%emt 0:00:25]} 53. h6 {[%emt 0:
00:00]} Rc3+ {[%emt 0:00:28]} 54. Kh4 {[%emt 0:00:17]} Bxh6 {[%emt 0:00:10]}
55. g5 {[%emt 0:00:04]} Bg7 {[%emt 0:01:07]} 56. Kg4 {[%emt 0:00:23]} Kg6 {
[%emt 0:00:11]} 57. Ra5 {[%emt 0:00:14]} e4 {[%emt 0:01:24]} 58. Kf4 {[%emt 0:
00:00]} e3 {[%emt 0:00:07]} 59. Kf3 {[%emt 0:00:18]} Bd4 {[%emt 0:00:33]} 60.
Ra4 {[%emt 0:00:14]} Bc5 {[%emt 0:00:13]} 61. Ra8 {[%emt 0:01:48]} Rc2 {
[%emt 0:00:29]} 62. Rg8+ {[%emt 0:00:29]} Kf7 {[%emt 0:00:29]} 0-1

[Event "44th Chess Olympiad Women 2022"]
[Site "Chennai"]
[Date "2022.08.05"]
[Round "7.39"]
[White "Pires, Luzia"]
[Black "Juarez Garcia, Daniela"]
[Result "0-1"]
[WhiteElo "1842"]
[BlackElo "1725"]
[Annotator "NA RC"]
[PlyCount "138"]
[EventDate "2022.??.??"]
[TimeControl "60"]

1. d4 {[%emt 0:02:03]} d5 {[%emt 0:00:11]} 2. Nf3 {[%emt 0:00:32]} Nf6 {
[%emt 0:00:15]} 3. e3 {[%emt 0:00:07]} e6 {[%emt 0:00:34]} 4. Bd3 {[%emt 0:00:
00]} Nbd7 {[%emt 0:00:20]} 5. Nbd2 {[%emt 0:00:32]} Be7 {[%emt 0:01:33]} 6. O-O
{[%emt 0:00:19]} b6 {[%emt 0:01:13]} 7. Re1 {[%emt 0:01:46]} Bb7 {[%emt 0:00:
00]} 8. e4 {[%emt 0:00:26]} dxe4 {[%emt 0:04:47]} 9. Nxe4 {[%emt 0:00:13]} Nxe4
{[%emt 0:01:16]} 10. Bxe4 {[%emt 0:00:19]} Bxe4 {[%emt 0:00:14]} 11. Rxe4 {
[%emt 0:00:09]} Nf6 {[%emt 0:00:11]} 12. Re1 {[%emt 0:00:25]} O-O {[%emt 0:00:
00]} 13. Bg5 {[%emt 0:10:12]} Rc8 {[%emt 0:04:37]} 14. c3 {[%emt 0:01:00]} Nd5
{[%emt 0:17:07]} 15. Bxe7 {[%emt 0:01:11]} Qxe7 {[%emt 0:07:38]} 16. Qa4 {
[%emt 0:19:33]} c5 {[%emt 0:03:05]} 17. dxc5 {[%emt 0:03:49]} Rxc5 {[%emt 0:00:
00]} 18. Qg4 {[%emt 0:01:26]} Nf6 {[%emt 0:06:52]} 19. Qg3 {[%emt 0:01:14]} Nh5
{[%emt 0:04:38]} 20. Qg4 {[%emt 0:00:35]} Nf6 {[%emt 0:00:38]} 21. Qh4 {
[%emt 0:07:14]} Rd8 {[%emt 0:04:39]} 22. Rad1 {[%emt 0:04:11]} Rcd5 {[%emt 0:
00:00]} 23. Rxd5 {[%emt 0:00:46]} Rxd5 {[%emt 0:00:30]} 24. Nd4 {[%emt 0:01:55]
} Qd6 {[%emt 0:01:07]} 25. Nf3 {[%emt 0:12:48]} Rd1 {[%emt 0:02:19]} 26. Qc4 {
[%emt 0:00:17]} Rxe1+ {[%emt 0:01:51]} 27. Nxe1 {[%emt 0:00:03]} h6 {[%emt 0:
00:00]} 28. Qd3 {[%emt 0:00:27]} Qc6 {[%emt 0:03:38]} 29. Nf3 {[%emt 0:02:34]}
Qa4 {[%emt 0:02:19]} 30. Qb1 {[%emt 0:02:06]} Qc4 {[%emt 0:01:44]} 31. h3 {
[%emt 0:01:53]} Ne4 {[%emt 0:02:56]} 32. Qc2 {[%emt 0:01:51]} Nc5 {[%emt 0:00:
00]} 33. b3 {[%emt 0:03:04]} Qd3 {[%emt 0:01:09]} 34. Qb2 {[%emt 0:00:46]} Ne4
{[%emt 0:00:25]} 35. c4 {[%emt 0:01:34]} Qd1+ {[%emt 0:00:42]} 36. Kh2 {
[%emt 0:00:08]} Qf1 {[%emt 0:00:47]} 37. Qe5 {[%emt 0:01:51]} Nxf2 {[%emt 0:00:
00]} 38. Qb8+ {[%emt 0:00:33]} Kh7 {[%emt 0:00:05]} 39. Qxa7 {[%emt 0:00:41]}
Qh1+ {[%emt 0:00:17]} 40. Kg3 {[%emt 0:00:02]} Ne4+ {[%emt 0:00:23]} 41. Kf4 {
[%emt 0:31:06]} Nf6 {[%emt 0:33:34]} 42. Qxf7 {[%emt 0:07:00]} Qxg2 {[%emt 0:
00:00]} 43. Qxe6 {[%emt 0:03:55]} Qf2 {[%emt 0:00:00]} 44. h4 {[%emt 0:00:00]}
Nh5+ {[%emt 0:00:00]} 45. Ke4 {[%emt 0:00:00]} Qe2+ {[%emt 0:00:00]} 46. Kf5 {
[%emt 0:00:00]} Qxf3+ {[%emt 0:00:00]} 47. Ke5 {[%emt 0:00:00]} Qg3+ {[%emt 0:
00:00]} 48. Kd4 {[%emt 0:00:00]} Qxh4+ {[%emt 0:00:00]} 49. Kc3 {[%emt 0:00:00]
} Qf6+ {[%emt 0:00:00]} 50. Qxf6 {[%emt 0:00:00]} Nxf6 {[%emt 0:00:00]} 51. b4
{[%emt 0:00:00]} Nd7 {[%emt 0:00:00]} 52. Kd4 {[%emt 0:00:00]} Kg8 {[%emt 0:00:
00]} 53. c5 {[%emt 0:00:00]} bxc5+ {[%emt 0:00:00]} 54. bxc5 {[%emt 0:00:00]}
h5 {[%emt 0:00:00]} 55. c6 {[%emt 0:00:00]} Nb6 {[%emt 0:00:00]} 56. Kc5 {
[%emt 0:00:00]} Nc8 {[%emt 0:00:00]} 57. c7 {[%emt 0:00:00]} h4 {[%emt 0:00:00]
} 58. Kc6 {[%emt 0:00:00]} h3 {[%emt 0:00:00]} 59. Kd7 {[%emt 0:00:00]} h2 {
[%emt 0:00:00]} 60. Kxc8 {[%emt 0:00:00]} h1=Q {[%emt 0:00:00]} 61. Kd8 {
[%emt 0:00:00]} Qd5+ {[%emt 0:00:00]} 62. Ke7 {[%emt 0:00:00]} Qc6 {[%emt 0:00:
00]} 63. Kd8 {[%emt 0:00:00]} Qd6+ {[%emt 0:00:00]} 64. Kc8 {[%emt 0:00:00]} g5
{[%emt 0:00:00]} 65. a4 {[%emt 0:00:00]} g4 {[%emt 0:00:40]} 66. a5 {[%emt 0:
00:00]} g3 {[%emt 0:01:25]} 67. Kb7 {[%emt 0:00:00]} Qb4+ {[%emt 0:00:51]} 68.
Kc6 {[%emt 0:00:00]} Qc4+ {[%emt 0:00:55]} 69. Kb7 {[%emt 0:00:10]} Qb5+ {
[%emt 0:00:22]} 0-1

[Event "44th Chess Olympiad Women 2022"]
[Site "Chennai"]
[Date "2022.08.05"]
[Round "7.40"]
[White "Nakabo, Peninah"]
[Black "Shabanaj, Eglantina"]
[Result "1-0"]
[WhiteElo "1747"]
[BlackElo "1940"]
[Annotator "NA RC"]
[PlyCount "142"]
[EventDate "2022.??.??"]
[TimeControl "60"]

1. e4 {[%emt 0:00:06]} e6 {[%emt 0:00:11]} 2. d4 {[%emt 0:00:10]} d5 {[%emt 0:
00:00]} 3. Nd2 {[%emt 0:00:20]} Nf6 {[%emt 0:00:08]} 4. exd5 {[%emt 0:01:10]}
exd5 {[%emt 0:06:09]} 5. Ngf3 {[%emt 0:00:13]} Bd6 {[%emt 0:03:27]} 6. Bd3 {
[%emt 0:00:18]} O-O {[%emt 0:00:26]} 7. O-O {[%emt 0:00:06]} Bg4 {[%emt 0:00:
00]} 8. c3 {[%emt 0:00:13]} c5 {[%emt 0:02:07]} 9. dxc5 {[%emt 0:00:19]} Bxc5 {
[%emt 0:00:06]} 10. Qc2 {[%emt 0:00:39]} Nc6 {[%emt 0:00:51]} 11. Nb3 {[%emt 0:
00:00]} Bd6 {[%emt 0:04:37]} 12. Nbd4 {[%emt 0:03:47]} Rc8 {[%emt 0:02:52]} 13.
Nxc6 {[%emt 0:01:14]} bxc6 {[%emt 0:00:47]} 14. Bf5 {[%emt 0:09:26]} Bxf3 {
[%emt 0:05:57]} 15. gxf3 {[%emt 0:03:04]} Rb8 {[%emt 0:01:14]} 16. Kh1 {
[%emt 0:00:41]} Qc7 {[%emt 0:03:28]} 17. Bg5 {[%emt 0:03:45]} Bxh2 {[%emt 0:00:
00]} 18. Bxf6 {[%emt 0:00:59]} gxf6 {[%emt 0:00:05]} 19. Bxh7+ {[%emt 0:19:01]}
Kg7 {[%emt 0:05:03]} 20. Rg1+ {[%emt 0:06:09]} Kh6 {[%emt 0:04:46]} 21. Rg4 {
[%emt 0:08:34]} Rh8 {[%emt 0:04:49]} 22. Rh4+ {[%emt 0:01:43]} Kg7 {[%emt 0:00:
00]} 23. Rxh2 {[%emt 0:00:29]} Qf4 {[%emt 0:00:18]} 24. Rg1+ {[%emt 0:02:55]}
Kf8 {[%emt 0:00:21]} 25. Rg3 {[%emt 0:01:20]} Re8 {[%emt 0:01:04]} 26. Kg2 {
[%emt 0:02:59]} Re1 {[%emt 0:03:07]} 27. Bf5 {[%emt 0:03:48]} Rxh2+ {[%emt 0:
00:00]} 28. Kxh2 {[%emt 0:00:12]} Qe5 {[%emt 0:09:40]} 29. Bd3 {[%emt 0:07:33]}
Qh5+ {[%emt 0:01:24]} 30. Rh3 {[%emt 0:00:16]} Qe5+ {[%emt 0:00:11]} 31. Kg2 {
[%emt 0:00:30]} Qg5+ {[%emt 0:00:08]} 32. Rg3 {[%emt 0:00:22]} Qh4 {[%emt 0:00:
00]} 33. Bf1 {[%emt 0:02:30]} Re5 {[%emt 0:08:04]} 34. Qb3 {[%emt 0:02:40]} Rh5
{[%emt 0:06:13]} 35. Qb4+ {[%emt 0:00:50]} Qxb4 {[%emt 0:00:23]} 36. cxb4 {
[%emt 0:00:10]} Re5 {[%emt 0:00:33]} 37. Rg4 {[%emt 0:01:04]} Re1 {[%emt 0:00:
00]} 38. Rd4 {[%emt 0:00:21]} Rb1 {[%emt 0:00:23]} 39. Rd2 {[%emt 0:00:12]} Ke7
{[%emt 0:00:36]} 40. Ba6 {[%emt 0:01:13]} Kd6 {[%emt 0:00:41]} 41. f4 {[%emt 0:
00:00]} Re1 {[%emt 0:30:33]} 42. Kf3 {[%emt 0:01:06]} Rg1 {[%emt 0:02:03]} 43.
Rc2 {[%emt 0:05:00]} Rd1 {[%emt 0:02:42]} 44. Bb7 {[%emt 0:00:55]} Rd3+ {
[%emt 0:01:42]} 45. Kg4 {[%emt 0:03:28]} Rd4 {[%emt 0:02:58]} 46. Rxc6+ {
[%emt 0:00:00]} Ke7 {[%emt 0:00:00]} 47. Rc7+ {[%emt 0:00:00]} Kd6 {[%emt 0:00:
00]} 48. Rxf7 {[%emt 0:00:00]} Rxb4 {[%emt 0:00:00]} 49. b3 {[%emt 0:00:00]}
Ke6 {[%emt 0:00:00]} 50. Rh7 {[%emt 0:00:00]} Rd4 {[%emt 0:00:00]} 51. Bc8+ {
[%emt 0:00:00]} Kd6 {[%emt 0:00:00]} 52. Rxa7 {[%emt 0:00:00]} Rd2 {[%emt 0:00:
00]} 53. Kf3 {[%emt 0:00:00]} Rc2 {[%emt 0:00:00]} 54. Bf5 {[%emt 0:00:00]}
Rc3+ {[%emt 0:00:00]} 55. Ke2 {[%emt 0:00:00]} Rc6 {[%emt 0:00:00]} 56. Bd3 {
[%emt 0:00:00]} Kc5 {[%emt 0:00:00]} 57. Rb7 {[%emt 0:00:00]} Re6+ {[%emt 0:00:
00]} 58. Kd2 {[%emt 0:00:00]} Re8 {[%emt 0:00:00]} 59. b4+ {[%emt 0:00:00]} Kd4
{[%emt 0:00:00]} 60. a4 {[%emt 0:00:00]} Rc8 {[%emt 0:00:00]} 61. a5 {[%emt 0:
00:00]} Rc3 {[%emt 0:00:00]} 62. Be2 {[%emt 0:00:00]} Ra3 {[%emt 0:00:00]} 63.
Rc7 {[%emt 0:00:00]} Ke4 {[%emt 0:00:00]} 64. a6 {[%emt 0:00:00]} d4 {[%emt 0:
00:00]} 65. a7 {[%emt 0:00:00]} Ra2+ {[%emt 0:00:00]} 66. Ke1 {[%emt 0:00:00]}
Ra1+ {[%emt 0:00:00]} 67. Bd1 {[%emt 0:00:00]} d3 {[%emt 0:00:00]} 68. b5 {
[%emt 0:00:00]} Ra2 {[%emt 0:10:17]} 69. b6 {[%emt 0:00:00]} d2+ {[%emt 0:00:
00]} 70. Ke2 {[%emt 0:00:00]} Kxf4 {[%emt 0:08:22]} 71. b7 {[%emt 0:00:00]}
Rxa7 {[%emt 0:07:03]} 1-0